fUSD/lending_fUSD_20240211
["ID","MTS","AMOUNT","RATE_DAILY","PERIOD"]
[313739895,1707651047967,-158.343414,0.00029469,7]
[313739896,1707651047977,-151.0,0.00029469,7]
[313739897,1707651047987,-151.0,0.00029469,7]
[313739898,1707651047997,-151.0,0.00029469,7]
[313739899,1707651048009,-935.483709,0.00029469,7]
[313739900,1707651048020,-935.483709,0.00029469,7]
[313739901,1707651048030,-12049.94082082,0.00029483,2]
[313739902,1707651048041,-156.70524064,0.000295,3]
[313739903,1707651048053,-150.1,0.000297,4]
[313739904,1707651048063,-3017.15594006,0.00029714,28]
[313739905,1707651048074,-176.44955273,0.000298,2]
[313739906,1707651048084,-151.0,0.00029815,7]
[313739907,1707651048094,-2908.2582994,0.00029979,2]
[313739908,1707651048103,-751.4084842,0.00029979,2]
[313739909,1707651048113,-12931.9831601,0.00029979,2]
[313739910,1707651048123,-50000.0,0.0003,2]
[313739911,1707651048133,-405.61194202,0.0003,4]
[313739912,1707651048144,-1346.10384644,0.0003,4]
[313739913,1707651048153,-9690.3204777,0.0003,2]
[313739914,1707651048164,-2978.84807854,0.0003,4]
[313739915,1707651048173,-448.82644289,0.0003,4]
[313739916,1707651048183,-155.0,0.0003,4]
[313739917,1707651048193,-585.82753942,0.0003,2]
[313739918,1707651048203,-1974.21330849,0.0003,4]
[313739919,1707651048212,-3037.63,0.0003,2]
[313739920,1707651048221,-3000.0,0.0003,2]
[313739921,1707651048232,-172.32287853,0.0003,5]
[313739922,1707651048242,-820.93147686,0.0003,4]
[313739923,1707651048252,-155.23361237,0.0003,4]
[313739924,1707651048263,-369.81136266,0.0003,4]
[313739925,1707651048272,-199.92195508,0.0003,4]
[313739926,1707651048283,-906.62500448,0.0003,4]
[313739927,1707651048292,-456.25487762,0.0003,2]
[313739928,1707651048301,-155.59868309,0.0003,4]
[313739929,1707651048311,-156.57585572,0.0003,4]
[313739930,1707651048320,-2664.14472532,0.0003,4]
[313739931,1707651048329,-360.01041936,0.0003,2]
[313739932,1707651048339,-419.04094654,0.0003,4]
[313739933,1707651048348,-16000.0,0.0003,2]
[313739934,1707651048357,-890.42,0.0003,2]
[313739935,1707651048367,-16000.0,0.0003,2]
[313739936,1707651048377,-15000.0,0.0003,2]
[313739937,1707651048388,-3000.0,0.0003,2]
[313739938,1707651048397,-15000.0,0.0003,2]
[313739939,1707651048406,-16000.0,0.0003,2]
[313739940,1707651048416,-15000.0,0.0003,2]
[313739941,1707651048426,-154.19,0.0003,2]
[313739942,1707651048436,-1509.62,0.0003,2]
[313739943,1707651048446,-200.0,0.0003,2]
[313739944,1707651048456,-2422.26985,0.0003,2]
[313739945,1707651048466,-2422.26984,0.0003,2]
[313739946,1707651048476,-2422.26985,0.0003,2]
[313739947,1707651048487,-2422.26985,0.0003,2]
[313739948,1707651048497,-2422.26984,0.0003,2]
[313739949,1707651048507,-2422.26984,0.0003,2]
[313739950,1707651048518,-3000.0,0.0003001,2]
[313739951,1707651048528,-5469.225606,0.0003002,2]
[313739952,1707651048539,-15000.0,0.00030125,2]
[313739953,1707651048549,-15000.0,0.00030125,2]
[313739954,1707651048560,-150.0,0.00030137,2]
[313739955,1707651048569,-155.0,0.00030137,2]
[313739956,1707651048579,-527.93,0.00030187,2]
[313739957,1707651048589,-16000.0,0.000302,2]
[313739958,1707651048599,-1626.32,0.000302,2]
[313739959,1707651048609,-16000.0,0.000302,2]
[313739960,1707651048618,-565.23972644,0.000302,2]
[313739961,1707651048628,-419.91,0.00030203,2]
[313739962,1707651048639,-590.08,0.00030213,2]
[313739963,1707651048649,-15000.0,0.0003025,2]
[313739964,1707651048659,-15000.0,0.0003025,2]
[313739965,1707651048670,-158.4423,0.000303,2]
[313739966,1707651048680,-15000.0,0.00030375,2]
[313739967,1707651048690,-9926.75,0.00030375,2]
[313739968,1707651048700,-16000.0,0.000304,2]
[313739969,1707651048710,-16000.0,0.000304,2]
[313739970,1707651048720,-15000.0,0.000305,2]
[313739971,1707651048732,-12049.94082082,0.0003058,2]
[313739972,1707651048742,-16000.0,0.000306,2]
[313739973,1707651048751,-16000.0,0.000306,2]
[313739974,1707651048761,-15000.0,0.00030625,2]
[313739975,1707651048771,-150.0,0.00030714,2]
[313739976,1707651048781,-15000.0,0.0003075,2]
[313739977,1707651048791,-16000.0,0.000308,2]
[313739978,1707651048800,-16000.0,0.000308,2]
[313739979,1707651048810,-15000.0,0.00030875,2]
[313739980,1707651048819,-151.0,0.00030875,7]
[313739981,1707651048829,-151.0,0.00030875,7]
[313739982,1707651048838,-151.0,0.00030875,7]
[313739983,1707651048847,-935.483709,0.00030875,7]
[313739984,1707651048856,-935.483709,0.00030875,7]
[313739985,1707651048866,-151.0,0.00030875,7]
[313739986,1707651048875,-151.0,0.00030875,7]
[313739987,1707651048885,-2755.3411152,0.00030959,2]
[313739988,1707651048895,-710.9309292,0.00030959,2]
[313739989,1707651048904,-12791.5398079,0.00030959,2]
[313739990,1707651048914,-12651.0964557,0.00030959,2]
[313739991,1707651048923,-150.0,0.00030979,2]
[313739992,1707651048933,-150.0,0.00030979,2]
[313739993,1707651048943,-2213471.54498252,0.0003098,2]
[313739994,1707651048953,-225.439266,0.0003098,7]
[313739995,1707651048962,-151.0,0.0003098,7]
[313739996,1707651048972,-151.0,0.0003098,7]
[313739997,1707651048982,-935.483709,0.0003098,7]
[313739998,1707651048993,-935.483709,0.0003098,7]
[313739999,1707651049006,-151.0,0.0003098,7]
[313740000,1707651049015,-151.0,0.0003098,7]
[313740001,1707651049025,-50000.0,0.00031,2]
[313740002,1707651049034,-211.63436593,0.00031,4]
[313740003,1707651049044,-16000.0,0.00031,2]
[313740004,1707651049054,-15000.0,0.00031,2]
[313740005,1707651049063,-16000.0,0.00031,2]
[313740006,1707651049073,-1000.0,0.00031,2]
[313740007,1707651049083,-500.0,0.00031,3]
[313740008,1707651049093,-3585.95624042,0.00031049,2]
[313740009,1707651049102,-1178.99893101,0.00031088,2]
[313740010,1707651049111,-2602.423931,0.00031091,2]
[313740011,1707651049121,-670.4533743,0.00031091,2]
[313740012,1707651049130,-15000.0,0.00031125,2]
[313740013,1707651049139,-16000.0,0.000312,2]
[313740014,1707651049149,-16000.0,0.000312,2]
[313740015,1707651049159,-348.45787357,0.00031249,2]
[313740016,1707651049169,-15000.0,0.0003125,2]
[313740017,1707651049179,-150.0,0.00031291,2]
[313740018,1707651049189,-151.0,0.00031333,120]
[313740019,1707651049198,-171.38194321,0.00031399,2]
[313740020,1707651049207,-225.43379714,0.00031399,2]
[313740021,1707651049217,-511.10351094,0.000314,30]
[313740022,1707651049226,-16000.0,0.000314,2]
[313740023,1707651049236,-16000.0,0.000314,2]
[313740024,1707651049245,-302.33,0.0003141,2]
[313740025,1707651049254,-15000.0,0.000315,2]
[313740026,1707651049264,-151.0,0.000315,7]
[313740027,1707651049273,-151.0,0.000315,7]
[313740028,1707651049282,-935.483709,0.000315,7]
[313740029,1707651049291,-935.483709,0.000315,7]
[313740030,1707651049300,-155.0,0.00031507,2]
[313740031,1707651049309,-16000.0,0.000316,2]
[313740032,1707651049318,-16000.0,0.000316,2]
[313740033,1707651049327,-15000.0,0.00031625,2]
[313740034,1707651049337,-168.77,0.00031644,2]
[313740035,1707651049346,-180.0,0.00031644,2]
[313740036,1707651049356,-12049.94082082,0.00031677,3]
[313740037,1707651049365,-15000.0,0.0003175,2]
[313740038,1707651049375,-16000.0,0.000318,2]
[313740039,1707651049384,-15999.99,0.000318,2]
[313740040,1707651049394,-408281.242975,0.000318,3]
[313740041,1707651049403,-935.483709,0.000318,7]
[313740042,1707651049413,-935.483709,0.000318,7]
[313740043,1707651049422,-151.0,0.000318,7]
[313740044,1707651049431,-453.0,0.00031829,2]
[313740045,1707651049441,-150.0,0.00031867,2]
[313740046,1707651049450,-15000.0,0.00031875,2]
[313740047,1707651049460,-151.0,0.00031972,30]
[313740048,1707651049469,-50000.0,0.00032,2]
[313740049,1707651049479,-16000.0,0.00032,2]
[313740050,1707651049488,-14999.99,0.00032,2]
[313740051,1707651049498,-3819.03013616,0.00032,4]
[313740052,1707651049508,-150.0,0.00032,15]
[313740053,1707651049517,-10000.0,0.00032099,2]
[313740054,1707651049526,-150.0,0.00032172,7]
[313740055,1707651049535,-199.736,0.00032172,7]
[313740056,1707651049545,-16000.0,0.000322,2]
[313740057,1707651049554,-204.0,0.00032318,14]
[313740058,1707651049569,-16000.0,0.000324,2]
[313740059,1707651049578,-150.0,0.00032444,2]
[313740060,1707651049588,-150.0,0.000325,9]
[313740061,1707651049597,-160.0,0.00032513,2]
[313740062,1707651049607,-152.83991866,0.0003258,2]
[313740063,1707651049617,-16000.0,0.000326,2]
[313740064,1707651049626,-151.0,0.00032625,7]
[313740065,1707651049635,-441.0,0.00032659,2]
[313740066,1707651049646,-12510.6531035,0.00032733,2]
[313740067,1707651049655,-151.0,0.00032755,7]
[313740068,1707651049665,-151.0,0.00032755,7]
[313740069,1707651049674,-12049.94082082,0.00032774,4]
[313740070,1707651049684,-16000.0,0.000328,2]
[313740071,1707651049693,-2083.33,0.00032876,2]
[313740072,1707651049702,-2083.33,0.00032876,2]
[313740073,1707651049711,-2083.33,0.00032876,2]
[313740074,1707651049721,-2083.33,0.00032876,2]
[313740075,1707651049733,-2083.33,0.00032876,2]
[313740076,1707651049743,-2083.33,0.00032876,2]
[313740077,1707651049752,-2083.33,0.00032876,2]
[313740078,1707651049762,-2083.33,0.00032876,2]
[313740079,1707651049771,-2083.33,0.00032876,2]
[313740080,1707651049781,-2083.33,0.00032876,2]
[313740081,1707651049791,-2083.33,0.00032876,2]
[313740082,1707651049799,-2083.33,0.00032876,2]
[313740083,1707651049809,-2083.33,0.00032876,2]
[313740084,1707651049819,-2083.33,0.00032876,2]
[313740085,1707651049828,-2083.33,0.00032876,2]
[313740086,1707651049837,-2083.33,0.00032876,2]
[313740087,1707651049847,-2083.33,0.00032876,2]
[313740088,1707651049856,-2083.33,0.00032876,2]
[313740089,1707651049866,-2083.33,0.00032876,2]
[313740090,1707651049875,-2083.33,0.00032876,2]
[313740091,1707651049885,-2083.33,0.00032876,2]
[313740092,1707651049896,-2083.33,0.00032876,2]
[313740093,1707651049905,-2083.33,0.00032876,2]
[313740094,1707651049914,-2083.41,0.00032876,2]
[313740095,1707651049924,-500.0,0.00032876,2]
[313740096,1707651049934,-500.0,0.00032876,2]
[313740097,1707651049943,-500.0,0.00032876,2]
[313740098,1707651049952,-500.0,0.00032876,2]
[313740099,1707651049961,-500.0,0.00032876,2]
[313740100,1707651049971,-500.0,0.00032876,2]
[313740101,1707651049980,-500.0,0.00032876,2]
[313740102,1707651049991,-500.0,0.00032876,2]
[313740103,1707651050001,-500.0,0.00032876,2]
[313740104,1707651050010,-500.0,0.00032876,2]
[313740105,1707651050020,-935.483709,0.00032876,7]
[313740106,1707651050029,-935.483709,0.00032876,7]
[313740107,1707651050039,-150.1,0.00032877,2]
[313740108,1707651050049,-150.0,0.00032877,30]
[313740109,1707651050059,-150.0,0.00032877,30]
[313740110,1707651050068,-150.0,0.00032877,30]
[313740111,1707651050078,-179.87251315,0.00032877,30]
[313740112,1707651050089,-155.0,0.00032877,2]
[313740113,1707651050098,-154.19,0.000329,2]
[313740114,1707651050109,-154.19,0.000329,2]
[313740115,1707651050119,-527.93,0.00032932,2]
[313740116,1707651050129,-590.08,0.00032959,2]
[313740117,1707651050139,-2449.5067468,0.00032977,2]
[313740118,1707651050149,-629.9758193,0.00032977,2]
[313740119,1707651050159,-50000.0,0.00033,3]
[313740120,1707651050169,-542.8220688,0.00033,4]
[313740121,1707651050180,-300.0,0.00033,34]
[313740122,1707651050190,-101784.02022208,0.00033,2]
[313740123,1707651050200,-273.13704731,0.00033,4]
[313740124,1707651050209,-644.56959363,0.00033,2]
[313740125,1707651050219,-100074.42490832,0.00033,2]
[313740126,1707651050228,-502.3696857,0.00033,5]
[313740127,1707651050238,-500.0,0.00033,2]
[313740128,1707651050248,-150.0,0.00033,14]
[313740129,1707651050258,-5105.28462412,0.00033,5]
[313740130,1707651050268,-5749.52528676,0.00033,2]
[313740131,1707651050278,-16000.0,0.00033,2]
[313740132,1707651050288,-550.0,0.00033,3]
[313740133,1707651050298,-151.0,0.00033,7]
[313740134,1707651050308,-150.0,0.00033021,2]
[313740135,1707651050318,-16000.0,0.000332,2]
[313740136,1707651050329,-152.0,0.00033216,3]
[313740137,1707651050338,-151.0,0.00033291,4]
[313740138,1707651050348,-200000.0,0.000333,4]
[313740139,1707651050572,-128247.62910384,0.000333,3]
[313740140,1707651050582,-151.0,0.000333,7]
[313740141,1707651050592,-151.0,0.000333,7]
[313740142,1707651050601,-935.483709,0.000333,7]
[313740143,1707651050610,-935.483709,0.000333,7]
[313740144,1707651050620,-16000.0,0.000334,2]
[313740145,1707651050629,-160.17295226,0.00033427,4]
[313740146,1707651050640,-150.0,0.000335,12]
[313740147,1707651050650,-395.55246482,0.000335,2]
[313740148,1707651050659,-830.12,0.000335,2]
[313740149,1707651050668,-830.12,0.000335,2]
[313740150,1707651050678,-830.12,0.000335,2]
[313740151,1707651050688,-830.12,0.000335,2]
[313740152,1707651050698,-830.12,0.000335,2]
[313740153,1707651050708,-830.12,0.000335,2]
[313740154,1707651050717,-830.12,0.000335,2]
[313740155,1707651050726,-830.12,0.000335,2]
[313740156,1707651050736,-830.12,0.000335,2]
[313740157,1707651050745,-830.12,0.000335,2]
[313740158,1707651050755,-830.12,0.000335,2]
[313740159,1707651050765,-830.12,0.000335,2]
[313740160,1707651050774,-830.12,0.000335,2]
[313740161,1707651050784,-830.12,0.000335,2]
[313740162,1707651050794,-830.12,0.000335,2]
[313740163,1707651050804,-830.12,0.000335,2]
[313740164,1707651050814,-830.12,0.000335,2]
[313740165,1707651050823,-830.12,0.000335,2]
[313740166,1707651050833,-830.12,0.000335,2]
[313740167,1707651050843,-830.12,0.000335,2]
[313740168,1707651050853,-173.0,0.00033583,2]
[313740169,1707651050863,-183.0,0.00033583,2]
[313740170,1707651050873,-150.0,0.00033598,2]
[313740171,1707651050883,-16000.0,0.000336,2]
[313740172,1707651050895,-164.0,0.00033603,2]
[313740173,1707651050905,-302.33,0.00033674,2]
[313740174,1707651050915,-1000.0,0.000337,2]
[313740175,1707651050925,-152.0,0.00033747,2]
[313740176,1707651050935,-16000.0,0.000338,2]
[313740177,1707651050945,-12049.94082082,0.00033871,6]
[313740178,1707651050955,-1076.26732497,0.000339,3]
[313740179,1707651050965,-151.95104571,0.000339,2]
[313740180,1707651050975,-151.95104561,0.000339,2]
[313740181,1707651050985,-151.95104561,0.000339,2]
[313740182,1707651050996,-151.95104561,0.000339,2]
[313740183,1707651051010,-151.95104561,0.000339,2]
[313740184,1707651051020,-151.95104561,0.000339,2]
[313740185,1707651051030,-151.95104561,0.000339,2]
[313740186,1707651051040,-151.95104561,0.000339,2]
[313740187,1707651051051,-151.95104561,0.000339,2]
[313740188,1707651051061,-151.95104561,0.000339,2]
[313740189,1707651051071,-151.95104561,0.000339,2]
[313740190,1707651051081,-151.95104561,0.000339,2]
[313740191,1707651051092,-151.95104561,0.000339,2]
[313740192,1707651051103,-151.95104561,0.000339,2]
[313740193,1707651051113,-151.95104561,0.000339,2]
[313740194,1707651051122,-151.95104561,0.000339,2]
[313740195,1707651051132,-151.95104561,0.000339,2]
[313740196,1707651051144,-151.95104561,0.000339,2]
[313740197,1707651051154,-151.95104561,0.000339,2]
[313740198,1707651051164,-151.0,0.0003397,2]
[313740199,1707651051174,-12370.2097514,0.00033976,2]
[313740200,1707651051184,-5000.0,0.0003398,2]
[313740201,1707651051194,-150.0,0.00033999,30]
[313740202,1707651051204,-150.0,0.00033999,30]
[313740203,1707651051214,-50000.0,0.00034,4]
[313740204,1707651051223,-16000.0,0.00034,2]
[313740205,1707651051232,-767.32331922,0.00034,4]
[313740206,1707651051242,-300.0,0.00034,35]
[313740207,1707651051252,-63502.48,0.00034,2]
[313740208,1707651051262,-2554.0,0.00034,2]
[313740209,1707651051272,-4000.0,0.00034,5]
[313740210,1707651051282,-150.0,0.00034,11]
[313740211,1707651051291,-5000.0,0.00034,7]
[313740212,1707651051301,-3000.0,0.00034,8]
[313740213,1707651051310,-47152.80000079,0.00034,2]
[313740214,1707651051319,-391000.0,0.00034,2]
[313740215,1707651051329,-12587.0,0.00034,2]
[313740216,1707651051339,-6673.0,0.00034,5]
[313740217,1707651051349,-151.0,0.00034,7]
[313740218,1707651051358,-191.495064,0.00034,7]
[313740219,1707651051368,-935.483709,0.00034,7]
[313740220,1707651051378,-935.483709,0.00034,7]
[313740221,1707651051387,-151.0,0.00034,7]
[313740222,1707651051398,-151.95104561,0.00034029,2]
[313740223,1707651051408,-1000.0,0.00034095,2]
[313740224,1707651051418,-150.0,0.00034175,2]
[313740225,1707651051427,-155.0,0.00034247,2]
[313740226,1707651051437,-319.95475812,0.00034389,2]
[313740227,1707651051447,-2002.9,0.000344,2]
[313740228,1707651051457,-13590.71680258,0.000345,3]
[313740229,1707651051467,-150.0,0.000345,10]
[313740230,1707651051477,-40000.00892428,0.000345,2]
[313740231,1707651051487,-2008.880489,0.0003452,2]
[313740232,1707651051496,-1556.853797,0.0003452,2]
[313740233,1707651051505,-313.2586,0.0003452,2]
[313740234,1707651051514,-10000.0,0.00034521,2]
[313740235,1707651051524,-151.0,0.00034521,7]
[313740236,1707651051533,-50000.0,0.00034543,10]
[313740237,1707651051542,-9981.22719322,0.00034543,10]
[313740238,1707651051551,-16540.43159971,0.00034543,10]
[313740239,1707651051560,-6297.77975105,0.00034543,10]
[313740240,1707651051570,-27685.69022354,0.00034543,10]
[313740241,1707651051579,-151.0,0.00034543,7]
[313740242,1707651051588,-19158.90099278,0.00034543,10]
[313740243,1707651051598,-935.483709,0.00034543,7]
[313740244,1707651051607,-935.483701,0.00034543,7]
[313740245,1707651051617,-150.0,0.00034548,10]
[313740246,1707651051626,-151.95104561,0.00034614,2]
[313740247,1707651051635,-150.0,0.00034751,2]
[313740248,1707651051645,-3013.320734,0.00034794,2]
[313740249,1707651051655,-2335.280695,0.00034794,2]
[313740250,1707651051664,-469.8879,0.00034794,2]
[313740251,1707651051674,-3585.95624042,0.000348,2]
[313740252,1707651051684,-453.0,0.00034829,2]
[313740253,1707651051693,-1178.99893101,0.00034879,2]
[313740254,1707651051703,-348.45787357,0.00034884,2]
[313740255,1707651051713,-7148.19858956,0.00034892,10]
[313740256,1707651051722,-150.0,0.00034897,30]
[313740257,1707651051732,-361350.96793596,0.00034898,10]
[313740258,1707651051742,-13866.05958876,0.00034899,10]
[313740259,1707651051751,-150.0,0.00034899,30]
[313740260,1707651051760,-503.64538336,0.00034899,10]
[313740261,1707651051770,-9016.43971074,0.000349,4]
[313740262,1707651051779,-782157.26652914,0.000349,2]
[313740263,1707651052011,-1129.74803569,0.000349,2]
[313740264,1707651052022,-1473.16193053,0.000349,2]
[313740265,1707651052034,-915.0,0.000349,2]
[313740266,1707651052083,-1693.78220907,0.000349,2]
[313740267,1707651052097,-1167.375,0.000349,2]
[313740268,1707651052109,-9439.03476421,0.000349,2]
[313740276,1707651536672,-402.68003383,0.00022407,2]
[313740277,1707651536696,-204.0,0.00022408,2]
[313740278,1707651536720,-153.1764948,0.00022795,2]
[313740279,1707651536742,-206.9592,0.000228,2]
[313740280,1707651536764,-875.6893,0.000228,2]
[313740281,1707651536786,-41886.2968,0.00022821,2]
[313740282,1707651536807,-300.0,0.00022897,2]
[313740283,1707651536831,-900.0,0.00022897,2]
[313740284,1707651536855,-2249.1567,0.00022897,2]
[313740285,1707651536878,-872.6176,0.00022897,2]
[313740286,1707651536904,-1000.0,0.00022897,2]
[313740287,1707651536926,-500.0,0.00022897,2]
[313740288,1707651536948,-329.7576,0.00022897,2]
[313740289,1707651536970,-538.37521421,0.00022995,5]
[313740290,1707651536992,-5053.83253415,0.00022995,2]
[313740291,1707651537016,-161.27842766,0.00022998,2]
[313740292,1707651537039,-2800.35,0.00022998,2]
[313740293,1707651537063,-499.99,0.00022998,2]
[313740294,1707651537086,-2168.939588,0.00023,2]
[313740295,1707651537108,-1000.0,0.00023,2]
[313740296,1707651537131,-261.61,0.00023039,2]
[313740297,1707651537156,-153.1764947,0.00023367,2]
[313740298,1707651537178,-500.0,0.000236,2]
[313740299,1707651537201,-153.1764947,0.0002394,2]
[313740300,1707651537223,-202.13886159,0.00024,2]
[313740301,1707651537246,-517.78567072,0.00024,2]
[313740302,1707651537268,-500.0,0.00024484,2]
[313740303,1707651537292,-153.1764947,0.00024512,2]
[313740304,1707651537316,-5000.0,0.0002469,2]
[313740305,1707651537339,-1528.01,0.00024807,2]
[313740306,1707651537364,-1000.0,0.00024841,2]
[313740307,1707651537386,-330.54,0.00024847,2]
[313740308,1707651537407,-168.06,0.00024884,2]
[313740309,1707651537429,-250.0,0.00024931,2]
[313740310,1707651537450,-200.0,0.00025,2]
[313740311,1707651537473,-3000.0,0.00025,2]
[313740312,1707651537498,-550.0,0.00025,3]
[313740313,1707651537533,-18708.10674282,0.00025,4]
[313740314,1707651537559,-697.6684985,0.00025,2]
[313740315,1707651537581,-1591.80252541,0.00025,2]
[313740316,1707651537603,-651.15796803,0.00025,2]
[313740317,1707651537626,-305.09660322,0.00025,2]
[313740318,1707651537648,-168.26749515,0.00025,2]
[313740319,1707651537670,-938.20137126,0.00025,2]
[313740320,1707651537692,-1909.40818711,0.00025,2]
[313740321,1707651537714,-946.10396075,0.00025,2]
[313740322,1707651537737,-3000.0,0.0002501,2]
[313740323,1707651537761,-3000.0,0.0002502,2]
[313740324,1707651537785,-3000.0,0.0002503,2]
[313740325,1707651537810,-500.0,0.00025038,2]
[313740326,1707651537834,-3530.774395,0.0002504,2]
[313740327,1707651537858,-153.1764947,0.00025085,2]
[313740328,1707651537881,-205.25,0.00025123,2]
[313740329,1707651537905,-261.61,0.00025303,2]
[313740330,1707651537927,-200.0,0.000255,2]
[313740331,1707651537950,-163.56,0.00025628,2]
[313740332,1707651537973,-153.1764947,0.00025657,2]
[313740333,1707651537997,-200.0,0.00026,2]
[313740334,1707651538020,-153.1764947,0.00026229,2]
[313740335,1707651538045,-460.56086696,0.00026389,2]
[313740336,1707651538075,-518.06289995,0.00026389,2]
[313740337,1707651538100,-957.25756664,0.00026389,3]
[313740338,1707651538128,-250.0,0.00026425,2]
[313740339,1707651538154,-200.0,0.000265,2]
[313740340,1707651538178,-250.0,0.00026585,2]
[313740341,1707651538200,-23900.0,0.00026585,2]
[313740342,1707651538225,-153.1764947,0.00026802,2]
[313740343,1707651538248,-200.0,0.00027,2]
[313740344,1707651538271,-600.0,0.00027,3]
[313740345,1707651538294,-153.1764947,0.00027374,2]
[313740346,1707651538316,-155.0,0.00027397,2]
[313740347,1707651538340,-530.0,0.00027397,2]
[313740348,1707651538363,-196.95,0.00027401,2]
[313740349,1707651538388,-152.61,0.00027527,2]
[313740350,1707651538642,-261.61,0.00027567,2]
[313740351,1707651538666,-152.61,0.00027623,2]
[313740352,1707651538689,-152.61,0.00027718,2]
[313740353,1707651538713,-204.0,0.00027778,10]
[313740354,1707651538735,-152.61,0.00027814,2]
[313740355,1707651538756,-2846.6851,0.000279,2]
[313740356,1707651538778,-152.61,0.00027909,2]
[313740357,1707651538800,-1000.0,0.00027946,2]
[313740358,1707651538822,-153.1764947,0.00027947,2]
[313740359,1707651538846,-968.65830379,0.00028,2]
[313740360,1707651538867,-88271.32503815,0.00028,2]
[313740400,1707652237707,-202.13886159,0.0002412,2]
[313740401,1707652237717,-453.0,0.00024121,2]
[313740403,1707652237727,-500.0,0.00024895,2]
[313740404,1707652237737,-1250.0,0.00025,3]
[313740405,1707652237746,-2887.50667041,0.00025,2]
[313740406,1707652237759,-112.49332959,0.00025,2]
[313740407,1707652237769,-150.0,0.00025,2]
[313740408,1707652237779,-1591.80252541,0.00025007,2]
[313740409,1707652237790,-697.6684985,0.00025007,2]
[313740410,1707652237800,-168.26749515,0.00025007,2]
[313740411,1707652237811,-946.10396075,0.00025007,2]
[313740412,1707652237821,-661.44961944,0.00025008,2]
[313740413,1707652237857,-276.75175182,0.00025008,2]
[313740414,1707652237868,-305.09660322,0.00025009,2]
[313740415,1707652237877,-651.15796803,0.00025009,2]
[313740416,1707652237887,-3000.0,0.0002501,2]
[313740417,1707652237897,-3000.0,0.0002502,2]
[313740418,1707652237907,-3000.0,0.0002503,2]
[313740419,1707652237917,-3000.0,0.0002504,2]
[313740420,1707652237927,-4382.0,0.0002505,2]
[313740421,1707652237937,-499.99,0.0002505,2]
[313740422,1707652237946,-222.36,0.00025164,2]
[313740423,1707652237956,-500.0,0.00025836,2]
[313740424,1707652237966,-2000.0,0.00025936,2]
[313740425,1707652237977,-278.10084856,0.00026,2]
[313740426,1707652237988,-1000.0,0.00026179,2]
[313740427,1707652237998,-1000.0,0.00026389,3]
[313740428,1707652238009,-909.6971095,0.00026389,2]
[313740429,1707652238018,-1000.0,0.00026389,3]
[313740430,1707652238028,-157.51490868,0.00026389,2]
[313740431,1707652238038,-1000.0,0.00026389,3]
[313740432,1707652238048,-157.51490868,0.00026389,2]
[313740433,1707652238058,-2180.72800464,0.00026389,3]
[313740434,1707652238069,-179.95796353,0.00026389,2]
[313740435,1707652238079,-1000.0,0.00026389,3]
[313740436,1707652238090,-1000.0,0.00026389,3]
[313740437,1707652238100,-309.81083587,0.00026389,2]
[313740438,1707652238110,-150.67,0.0002655,2]
[313740439,1707652238119,-152.61,0.00026843,2]
[313740440,1707652238129,-153.1764947,0.00026894,2]
[313740441,1707652238139,-152.61,0.00026983,2]